bitfinex/quotes_SOLUSD_20220226
["timestamp","ask_amount","ask_price","bid_price","bid_amount"]
[1645839364758,26.68703768,93.907,93.805,57.33774714]
[1645839365056,28.37685276,93.906,93.805,57.33774714]
[1645839365356,1.38117072,93.905,93.805,57.33774714]
[1645839365557,4.261,93.904,93.805,57.33774714]
[1645839365757,1.38117072,93.905,93.805,57.33774714]
[1645839365960,23.01215399,93.903,93.805,57.33774714]
[1645839366158,6.12112861,93.902,93.805,57.33774714]
[1645839366559,1.65755184,93.901,93.805,57.33774714]
[1645839366758,25.7734046,93.901,93.805,57.33774714]
[1645839366970,25.7734046,93.901,93.756,2.73631248]
[1645839366971,15.9911,93.89,93.756,2.73631248]
[1645839367169,1.60251668,93.888,93.756,23.5725]
[1645839367364,107.60251668,93.888,93.756,23.5725]
[1645839367567,106.0,93.886,93.756,23.5725]
[1645839367766,6.83418492,93.887,93.753,22.5304]
[1645839367767,106.0,93.884,93.753,22.5304]
[1645839367965,12.71,93.87,93.754,54.81852393]
[1645839368166,1.61656623,93.869,93.754,54.81852393]
[1645839368366,110.263,93.868,93.754,54.81852393]
[1645839368565,110.263,93.868,93.712,46.2383]
[1645839368566,15.9962,93.86,93.712,46.2383]
[1645839368765,106.0,93.849,93.7,16.0048]
[1645839368965,106.0,93.847,93.7,16.0048]
[1645839369164,5.98038521,93.846,93.7,16.0048]
[1645839369366,8.55157013,93.846,93.7,16.0048]
[1645839369564,50.88728492,93.845,93.701,161.87456057]
[1645839369764,50.88728492,93.845,93.71,16.0033]
[1645839369765,12.71,93.84,93.71,16.0033]
[1645839369963,4.265,93.839,93.711,106.0]
[1645839370169,8.61012923,93.839,93.712,2.95916195]
[1645839370563,4.265,93.839,93.714,106.0]
[1645839370764,1.87375328,93.844,93.721,106.0]
[1645839370963,1.87375328,93.844,93.723,106.0]
[1645839371364,6.83618492,93.843,93.724,2.86292427]
[1645839371566,6.83618492,93.843,93.726,106.0]
[1645839371763,2.57118492,93.842,93.726,106.0]
[1645839371963,4.265,93.841,93.74,15.9983]
[1645839372164,4.265,93.841,93.741,46.53703969]
[1645839372364,2.57118492,93.84,93.741,46.53703969]
[1645839372763,8.28655436,93.84,93.741,46.53703969]
[1645839372965,46.78935185,93.839,93.741,46.53703969]
[1645839373165,1.5868004,93.838,93.741,46.53703969]
[1645839373364,28.27383808,93.838,93.741,46.53703969]
[1645839373563,6.12885468,93.837,93.741,46.53703969]
[1645839373768,32.81589236,93.837,93.741,46.53703969]
[1645839373963,28.38200157,93.836,93.741,46.53703969]
[1645839374164,1.83608219,93.835,93.741,46.53703969]
[1645839374463,1.78779807,93.834,93.741,46.53703969]
[1645839374663,5.63110194,93.833,93.741,46.53703969]
[1645839374865,8.2021709,93.833,93.741,46.53703969]
[1645839375063,16.002,93.83,93.741,46.53703969]
[1645839375264,1.54315604,93.828,93.741,46.53703969]
[1645839375664,2.57106896,93.827,93.741,46.53703969]
[1645839375866,4.36130304,93.827,93.741,46.53703969]
[1645839376064,24.11585276,93.826,93.741,46.53703969]
[1645839376267,1.76489283,93.825,93.741,46.53703969]
[1645839376665,4.33596179,93.825,93.741,46.53703969]
[1645839377565,2.57106896,93.825,93.727,2.80254824]
[1645839377765,2.57106896,93.825,93.704,2.86292427]
[1645839377766,106.0,93.819,93.704,2.86292427]
[1645839377965,106.0,93.817,93.658,49.4242]
[1645839378166,5.0,93.807,93.658,49.4242]
[1645839378367,6.04656462,93.816,93.626,5.56169245]
[1645839378368,5.0,93.787,93.626,5.56169245]
[1645839378565,12.71,93.78,93.637,49.53402762]
[1645839378768,5.0,93.777,93.637,49.53402762]
[1645839378965,4.268,93.776,93.637,49.53402762]
[1645839379167,16.0192,93.75,93.61,16.0201]
[1645839379369,5.93212888,93.749,93.61,16.0201]
[1645839379567,12.71,93.74,93.61,16.0201]
[1645839379767,28.57424491,93.739,93.582,24.7488]
[1645839379969,1.69969898,93.738,93.582,24.7488]
[1645839380175,9.269,93.737,93.583,58.28299376]
[1645839380469,1.57562856,93.735,93.583,58.28299376]
[1645839380668,1.35990433,93.733,93.583,58.28299376]
[1645839380869,1.52118085,93.719,93.583,58.28299376]
[1645839381071,16.0272,93.7,93.619,0.10882366]
[1645839381373,1.8696717,93.699,93.619,0.10882366]
[1645839381570,23.78468548,93.699,93.619,0.10882366]
[1645839381771,23.22389362,93.698,93.619,0.10882366]
[1645839381971,1.29764792,93.697,93.619,0.10882366]
[1645839382172,4.269,93.696,93.619,0.10882366]
[1645839382371,27.45928637,93.696,93.619,0.10882366]
[1645839382572,16.0267,93.69,93.619,0.10882366]
[1645839382771,5.98087178,93.689,93.619,0.10882366]
[1645839382973,48.43154291,93.689,93.619,0.10882366]
[1645839383172,4.27072797,93.688,93.619,0.10882366]
[1645839383372,75.77160112,93.688,93.619,0.10882366]
[1645839383575,1.37421378,93.679,93.619,0.10882366]
[1645839383874,23.51157158,93.678,93.619,0.10882366]
[1645839384072,1.69760246,93.677,93.619,0.10882366]
[1645839384273,4.271,93.676,93.619,0.10882366]
[1645839384473,27.27850576,93.676,93.619,0.10882366]
[1645839384677,20.42219497,93.675,93.619,0.10882366]
[1645839384873,12.71,93.66,93.619,0.00882366]
[1645839385073,29.96518992,93.659,93.619,0.00882366]
[1645839385274,1.76598958,93.658,93.619,0.00882366]
[1645839385474,4.271,93.657,93.619,0.00882366]
[1645839385693,6.10550506,93.657,93.619,0.00882366]
[1645839385872,132.72153185,93.656,93.619,0.00882366]
[1645839386073,111.74208554,93.655,93.619,0.00882366]
[1645839386275,1.41063262,93.654,93.619,0.00882366]
[1645839386477,12.71,93.64,93.619,0.00882366]
[1645839386675,50.27361527,93.639,93.619,0.00882366]
[1645839386877,5.92067052,93.638,93.619,0.00882366]
[1645839387076,9.22576203,93.638,93.619,0.00882366]
[1645839387276,2.58777553,93.637,93.619,0.00882366]
[1645839387476,16.0416,93.63,93.619,0.00882366]
[1645839387677,5.83017187,93.629,93.619,0.00882366]
[1645839387878,0.03193033,93.628,93.619,0.00882366]
[1645839388078,1.43740942,93.628,93.619,0.00882366]
[1645839388479,2.58777553,93.627,93.619,0.00882366]
[1645839388678,4.272,93.626,93.619,0.00882366]
[1645839389082,4.272,93.627,93.619,0.00882366]
[1645839389280,2.58777553,93.625,93.619,0.00882366]
[1645839389483,0.6430976,93.625,93.619,0.00882366]
[1645839389679,1.43740942,93.628,93.619,0.00882366]
[1645839390081,0.03193033,93.628,93.619,0.00882366]
[1645839391380,26.00450549,93.628,93.619,0.00882366]
[1645839391781,0.03193033,93.628,93.619,0.00882366]
[1645839392279,1.64939903,93.688,93.62,0.08349179]
[1645839392480,4.271,93.687,93.62,0.08349179]
[1645839392680,8.66666551,93.687,93.62,0.08349179]
[1645839392881,25.2707303,93.686,93.62,0.08349179]
[1645839393205,26.85912358,93.685,93.619,0.00882366]
[1645839393403,1.67747733,93.684,93.619,0.00882366]
[1645839393602,4.271,93.683,93.619,0.00882366]
[1645839393803,31.13234058,93.683,93.619,0.00882366]
[1645839394106,1.85057529,93.681,93.619,0.00882366]
[1645839394302,4.271,93.68,93.619,0.00882366]
[1645839394503,1.75209646,93.679,93.619,0.00882366]
[1645839394704,4.271,93.678,93.619,0.00882366]
[1645839395104,22.68816133,93.677,93.619,0.00882366]
[1645839395306,4.271,93.676,93.619,0.00882366]
[1645839395505,24.53782341,93.676,93.619,0.00882366]
[1645839395705,26.95335729,93.675,93.619,0.00882366]
[1645839395905,6.01836592,93.674,93.619,0.00882366]
[1645839396105,47.34822186,93.674,93.619,0.00882366]
[1645839396305,4.44758945,93.673,93.619,0.00882366]
[1645839396504,16.0313,93.67,93.619,0.00882366]
[1645839396709,1.4999695,93.669,93.619,0.00882366]
[1645839396905,4.271,93.668,93.619,0.00882366]
[1645839397106,30.40619399,93.668,93.619,0.00882366]
[1645839397306,24.4172202,93.667,93.619,0.00882366]
[1645839397507,5.7023706,93.666,93.619,0.00882366]
[1645839397806,1.46128676,93.665,93.619,0.00882366]
[1645839398006,26.73201706,93.665,93.619,0.00882366]
[1645839398207,4.37472479,93.664,93.619,0.00882366]
[1645839398409,1.72669868,93.663,93.619,0.00882366]
[1645839398608,16.0309,93.66,93.619,0.00882366]
[1645839399107,25.2707303,93.659,93.619,0.00882366]
[1645839399507,25.2707303,93.658,93.619,0.00882366]
[1645839399708,48.82335532,93.658,93.619,0.00882366]
[1645839399907,41.32985594,93.657,93.619,0.00882366]
[1645839400109,16.0328,93.65,93.619,0.00882366]
[1645839400611,4.271,93.649,93.619,0.00882366]
[1645839400810,16.0328,93.65,93.619,0.00882366]
[1645839404316,4.271,93.661,93.619,0.00882366]
[1645839404512,22.6211,93.666,93.619,0.00882366]
[1645839405312,4.271,93.665,93.619,0.00882366]
[1645839405513,22.6211,93.666,93.619,0.00882366]
[1645839405714,16.031,93.66,93.619,0.00882366]
[1645839405915,4.271,93.659,93.619,0.00882366]
[1645839406915,16.031,93.66,93.619,0.00882366]
[1645839407313,50.51178635,93.659,93.619,0.00882366]
[1645839407715,22.68816133,93.658,93.619,0.00882366]
[1645839407913,4.271,93.657,93.619,0.00882366]
[1645839408115,16.0331,93.65,93.619,0.00882366]
[1645839408315,4.271,93.649,93.619,0.00882366]
[1645839409217,22.68816133,93.648,93.619,0.00882366]
[1645839409417,4.271,93.647,93.619,0.00882366]
[1645839409614,6.85356897,93.647,93.619,0.00882366]
[1645839409814,2.58256897,93.646,93.619,0.00882366]
[1645839410015,16.035,93.64,93.619,0.00882366]
[1645839410216,4.272,93.639,93.619,0.00882366]
[1645839410918,16.035,93.64,93.619,0.00882366]
[1645839411116,48.82335532,93.638,93.619,0.00882366]
[1645839411317,4.272,93.637,93.619,0.00882366]
[1645839411522,29.5427303,93.637,93.619,0.00882366]
[1645839411716,2.58256897,93.636,93.619,0.00882366]
[1645839411918,4.272,93.635,93.619,0.00882366]
[1645839412117,26.96016133,93.635,93.619,0.00882366]
[1645839412417,48.82335532,93.634,93.619,0.00882366]
[1645839412620,53.4648,93.63,93.619,0.00882366]
[1645839412819,4.30393033,93.629,93.619,0.00882366]
[1645839413018,29.57466063,93.629,93.619,0.00882366]
[1645839413220,21.8903592,93.628,93.619,0.00882366]
[1645839413417,4.272,93.627,93.619,0.00882366]
[1645839413619,29.5427303,93.627,93.619,0.00882366]
[1645839413817,26.13519399,93.626,93.619,0.00882366]
[1645839414020,4.272,93.625,93.619,0.00882366]
[1645839414219,22.91369461,93.625,93.619,0.00882366]
[1645839414426,4.20736857,93.624,93.619,0.00882366]
[1645839414620,4.272,93.623,93.619,0.00882366]
[1645839414826,6.85456897,93.623,93.619,0.00882366]
[1645839415019,110.08528353,93.622,93.619,0.00882366]
[1645839415220,106.0,93.62,93.619,0.00882366]
[1645839415420,16.0468,93.59,93.492,3.00233446]
[1645839415620,51.7,93.589,93.492,3.00233446]
[1645839416021,51.7,93.589,93.475,24.1179]
[1645839416022,1.47891903,93.588,93.493,47.74740495]
[1645839416321,133.82862502,93.587,93.442,2.25385936]
[1645839416521,1.65410462,93.569,93.442,2.25385936]
[1645839416723,12.71,93.56,93.442,2.25385936]
[1645839416922,27.87,93.559,93.442,2.25385936]
[1645839417323,1.7370316,93.558,93.443,53.02581134]
[1645839417524,27.297,93.557,93.444,2.52690118]
[1645839417721,1.46150786,93.556,93.444,2.52690118]
[1645839417921,4.277,93.555,93.444,2.52690118]
[1645839418122,6.0582806,93.555,93.444,2.52690118]
[1645839418323,2.58256897,93.554,93.444,2.52690118]
[1645839418523,16.053,93.53,93.444,2.52690118]
[1645839419629,16.0584,93.51,93.443,53.02581134]
[1645839420023,4.279,93.509,93.443,53.02581134]
[1645839420223,4.279,93.519,93.443,53.02581134]
[1645839420425,76.21606133,93.52,93.403,2.71778769]
[1645839420623,24.8225,93.518,93.403,2.71778769]
[1645839420822,4.279,93.517,93.403,1.71778769]
[1645839421024,5.91631788,93.517,93.403,1.71778769]
[1645839421226,22.684,93.516,93.404,2.75767638]
[1645839421423,22.684,93.516,93.406,2.85563524]
[1645839421829,22.684,93.516,93.408,106.0]
[1645839422025,22.684,93.516,93.409,2.74847327]
[1645839422426,4.279,93.538,93.409,2.74847327]
[1645839422627,53.6439,93.546,93.411,108.48910817]
[1645839422827,53.6439,93.546,93.412,2.26769319]
[1645839423128,1.85064647,93.544,93.412,5.13061746]
[1645839423326,1.85064647,93.544,93.404,47.15603233]
[1645839423327,4.279,93.543,93.405,108.69733757]
[1645839423527,16.0519,93.54,93.41,16.0546]
[1645839423727,4.279,93.539,93.411,2.3178266]
[1645839423928,6.86146267,93.539,93.411,2.3178266]
[1645839424129,27.56939971,93.538,93.411,2.3178266]
[1645839424428,4.279,93.537,93.412,2.46167791]
[1645839424831,27.56939971,93.536,93.412,2.46167791]
[1645839425128,4.279,93.535,93.412,2.46167791]
[1645839425328,23.0098,93.534,93.412,2.46167791]
[1645839425529,16.0544,93.53,93.412,2.46167791]
[1645839425729,4.279,93.529,93.412,2.46167791]
[1645839425929,57.73187664,93.533,93.412,2.46167791]
[1645839426129,25.88347693,93.528,93.412,2.46167791]
[1645839426329,4.279,93.527,93.412,2.46167791]
[1645839426529,31.84839971,93.527,93.412,2.46167791]
[1645839426730,4.279,93.527,93.412,2.46167791]
[1645839426955,27.56939971,93.526,93.412,2.46167791]
[1645839427132,4.279,93.525,93.412,2.46167791]
[1645839427336,30.16247693,93.525,93.412,2.46167791]
[1645839427531,16.0552,93.52,93.412,2.46167791]
[1645839427733,4.279,93.519,93.405,3.07752859]
[1645839427931,85.10743931,93.519,93.405,3.07752859]
[1645839428130,2.58246267,93.518,93.405,3.07752859]
[1645839428330,4.279,93.517,93.406,2.89020442]
[1645839428531,27.56939971,93.519,93.406,2.89020442]
[1645839428934,16.0574,93.51,93.406,2.89020442]
[1645839429432,16.0574,93.51,93.406,2.39020442]
[1645839429635,4.279,93.509,93.406,2.39020442]
[1645839430034,16.0584,93.5,93.404,47.15603233]
[1645839430435,4.28,93.499,93.404,47.15603233]
[1645839431036,31.84939971,93.499,93.404,47.15603233]
[1645839431439,4.28,93.499,93.406,2.84709687]
[1645839431635,4.28,93.499,93.405,106.0]
[1645839431835,4.28,93.499,93.404,47.15603233]
[1645839432244,16.0601,93.49,93.404,47.15603233]
[1645839432438,6.20241743,93.489,93.383,2.74712972]
[1645839432639,6.20241743,93.489,93.366,47.5655]
[1645839432640,32.8831801,93.489,93.366,47.5655]
[1645839432836,110.56143471,93.488,93.366,47.5655]
[1645839433039,106.0,93.486,93.334,2.82667979]
[1645839433237,16.0627,93.48,93.33,16.0683]
[1645839433439,6.12435805,93.485,93.313,0.53562394]
[1645839433440,5.0,93.447,93.313,0.53562394]
[1645839433637,4.283,93.446,93.313,0.53562394]
[1645839433838,12.71,93.44,93.313,0.53562394]
[1645839434137,6.06879626,93.439,93.313,0.53562394]
[1645839434337,94.23554722,93.439,93.313,0.53562394]
[1645839434537,1.88674831,93.429,93.313,0.53562394]
[1645839434738,12.71,93.42,93.313,0.53562394]
[1645839434940,4.284,93.419,93.313,0.53562394]
[1645839435137,1.81247618,93.418,93.313,0.53562394]
[1645839435337,4.284,93.417,93.313,0.53562394]
[1645839435537,35.5921639,93.417,93.313,0.53562394]
[1645839435738,27.8377602,93.416,93.313,0.53562394]
[1645839435940,6.18271007,93.415,93.313,0.53562394]
[1645839436138,1.86495813,93.414,93.313,0.53562394]
[1645839436341,12.71,93.4,93.313,0.53562394]
[1645839436539,6.03450273,93.399,93.313,0.53562394]
[1645839436739,38.47456911,93.399,93.313,0.53562394]
[1645839436939,4.34423924,93.398,93.313,0.53562394]
[1645839437140,5.88185357,93.397,93.313,0.53562394]
[1645839437341,40.90438262,93.397,93.313,0.53562394]
[1645839437542,30.27986466,93.396,93.313,0.53562394]
[1645839437739,4.284,93.395,93.313,0.53562394]
[1645839437941,16.0819,93.38,93.313,0.53562394]
[1645839438341,4.285,93.379,93.313,0.53562394]
[1645839438544,6.86746267,93.379,93.313,0.53562394]
[1645839438746,41.96537693,93.38,93.313,0.53562394]
[1645839438943,25.88347693,93.379,93.313,0.53562394]
[1645839439144,55.37687664,93.379,93.313,0.53562394]
[1645839439344,1.78888668,93.378,93.313,0.53562394]
[1645839439544,16.0812,93.37,93.313,0.53562394]
[1645839439744,6.07869432,93.369,93.313,0.53562394]
[1645839439944,5.73402653,93.376,93.313,0.53562394]
[1645839440146,1.56263574,93.368,93.313,0.53562394]
[1645839440346,5.75909541,93.367,93.313,0.53562394]
[1645839440550,62.85176805,93.367,93.313,0.53562394]
[1645839440846,1.53438093,93.359,93.313,0.53562394]
[1645839441046,4.285,93.358,93.313,0.53562394]
[1645839441247,13.08746267,93.358,93.313,0.53562394]
[1645839441550,1.93920797,93.356,93.313,0.53562394]
[1645839441746,4.285,93.355,93.313,0.53562394]
[1645839441972,1.58110087,93.354,93.313,0.53562394]
[1645839442158,4.285,93.353,93.313,0.53562394]
[1645839442361,8.60049447,93.353,93.313,0.53562394]
[1645839442561,1.6725084,93.349,93.313,0.53562394]
[1645839442863,6.86746267,93.348,93.313,0.53562394]
[1645839443059,6.86746267,93.348,93.313,0.00562394]
[1645839443260,2.58246267,93.347,93.236,49.65103051]
[1645839443462,4.287,93.346,93.236,49.65103051]
[1645839443761,4.287,93.346,93.237,2.376104]
[1645839443959,1.63510834,93.348,93.24,16.0839]
[1645839444160,4.287,93.347,93.241,106.0]
[1645839444362,2.58246267,93.345,93.241,106.0]
[1645839444559,4.287,93.344,93.241,106.0]
[1645839444762,4.287,93.347,93.241,106.0]
[1645839444960,4.287,93.347,93.242,2.36893554]
[1645839445160,1.45940147,93.349,93.242,2.36893554]
[1645839445562,4.287,93.367,93.251,161.70890834]
[1645839445762,16.0817,93.37,93.252,2.74145095]
[1645839446161,1.59886687,93.381,93.252,2.74145095]
[1645839447164,4.285,93.38,93.252,2.74145095]
[1645839447566,4.285,93.38,93.271,160.10178864]
[1645839447765,1.59886687,93.381,93.272,2.31082156]
[1645839447967,99.11743495,93.382,93.272,2.31082156]
[1645839448165,2.58246267,93.386,93.272,2.31082156]
[1645839448365,2.58246267,93.381,93.272,2.31082156]
[1645839448565,4.285,93.38,93.272,2.31082156]
[1645839449365,2.58246267,93.381,93.281,106.0]
[1645839449566,2.58246267,93.401,93.282,2.45544363]
[1645839450166,22.34436161,93.419,93.283,2.86292427]
[1645839450367,23.9103,93.423,93.285,2.81088731]
[1645839450570,23.9103,93.423,93.287,106.0]
[1645839450766,23.9103,93.423,93.301,106.0]
[1645839450965,23.9103,93.423,93.321,106.0]
[1645839451168,23.9103,93.423,93.323,106.0]
[1645839451369,23.62853872,93.422,93.324,2.70345216]
[1645839451966,40.41028465,93.422,93.324,2.70345216]
[1645839452166,42.99274732,93.422,93.324,2.70345216]
[1645839452366,47.27574732,93.422,93.324,2.70345216]
[1645839452968,6.86546267,93.422,93.324,2.70345216]
[1645839453170,23.9103,93.423,93.324,2.70345216]
[1645839453769,2.59855455,93.447,93.331,108.21609168]
[1645839453970,1.90335238,93.478,93.332,2.24686722]
[1645839454171,2.59855455,93.481,93.332,5.10979149]
[1645839454370,2.59855455,93.478,93.334,2.53793843]
[1645839454573,4.282,93.477,93.334,2.53793843]
[1645839454772,4.282,93.477,93.336,105.5]
[1645839454973,1.65295148,93.476,93.351,105.5]
[1645839455174,17.79220064,93.477,93.361,105.5]
[1645839455374,2.59855455,93.488,93.362,2.93367202]
[1645839455573,4.282,93.491,93.362,2.93367202]
[1645839455778,1.85663487,93.494,93.364,2.3028435]
[1645839455977,4.281,93.501,93.364,2.3028435]
[1645839455978,5.84056936,93.501,93.364,2.3028435]
[1645839456177,4.281,93.515,93.371,5.0]
[1645839456376,4.281,93.515,93.393,105.5]
[1645839456576,2.59861824,93.529,93.401,105.5]
[1645839456778,2.59861824,93.529,93.402,2.6375369]
[1645839457176,2.59861824,93.529,93.403,105.5]
[1645839457376,2.59861824,93.529,93.404,2.251612]
[1645839457578,2.59861824,93.529,93.42,16.053]
[1645839457777,2.59861824,93.529,93.421,49.72890304]
[1645839458577,4.279,93.535,93.431,105.5]
[1645839458778,20.29213205,93.551,93.432,2.74575096]
[1645839458977,48.94030761,93.586,93.441,105.5]
[1645839458978,4.277,93.585,93.441,105.5]
[1645839459179,5.90001173,93.585,93.443,105.5]
[1645839459478,5.90001173,93.585,93.444,2.4717731]
[1645839459679,2.59914026,93.584,93.445,105.5]
[1645839459878,2.59914026,93.584,93.446,2.44839468]
[1645839459879,4.277,93.583,93.446,2.44839468]
[1645839460282,22.89127231,93.582,93.452,2.61368312]
[1645839460484,1.78528188,93.579,93.471,48.0852426]
[1645839460686,4.276,93.578,93.471,48.0852426]
[1645839460883,47.2817399,93.578,93.471,48.0852426]
[1645839461083,1.6457101,93.577,93.44,53.482]
[1645839461280,5.75739217,93.576,93.423,46.5002]
[1645839461483,1.52933466,93.569,93.43,16.0511]
[1645839461687,4.277,93.568,93.44,12.71]
[1645839461881,28.3754,93.568,93.432,2.51555743]
[1645839462082,21.73796549,93.567,93.433,52.84458291]
[1645839462283,6.27010675,93.566,93.433,52.84458291]
[1645839462482,29.16110362,93.566,93.44,16.0486]
[1645839462681,4.56390306,93.565,93.44,16.0486]
[1645839462882,5.94007555,93.564,93.44,16.0486]
[1645839463083,48.94554001,93.564,93.44,16.0486]
[1645839463283,24.80794541,93.563,93.441,106.0]
[1645839463488,1.51417264,93.562,93.442,2.29110918]
[1645839463683,1.51417264,93.562,93.44,12.71]
[1645839463886,16.05,93.56,93.44,16.0495]
[1645839464085,5.9463864,93.559,93.44,16.0495]
[1645839464284,8.54525122,93.559,93.433,52.84458291]
[1645839464485,1.89700104,93.557,93.433,52.84458291]
[1645839464685,4.277,93.556,93.433,52.84458291]
[1645839464886,26.99033241,93.556,93.433,52.84458291]
[1645839465087,4.34778914,93.555,93.433,52.84458291]
[1645839465286,1.73841933,93.529,93.4,16.0562]
[1645839465493,4.279,93.528,93.382,48.4618]
[1645839465786,1.92852262,93.527,93.374,2.86292427]
[1645839465990,4.28,93.526,93.374,2.86292427]
[1645839466188,35.25597509,93.526,93.375,45.34208842]
[1645839466387,107.87998733,93.525,93.375,45.34208842]
[1645839466687,1.92483989,93.499,93.38,16.0596]
[1645839466887,4.28,93.498,93.38,16.0596]
[1645839467088,6.87886482,93.498,93.38,15.0596]
[1645839467291,2.59886482,93.497,93.38,15.0596]
[1645839467588,4.28,93.496,93.38,15.0596]
[1645839467992,2.59886482,93.495,93.38,15.0596]
[1645839468214,4.28,93.494,93.38,15.0596]
[1645839468392,16.061,93.49,93.38,15.0596]
[1645839468593,5.89986212,93.489,93.38,15.0596]
[1645839469190,1.61886212,93.489,93.38,15.0596]
[1645839469593,4.281,93.488,93.38,15.0596]
[1645839469792,4.281,93.488,93.381,106.0]
[1645839469992,4.281,93.488,93.381,108.86292427]
[1645839470192,2.59886482,93.487,93.381,108.86292427]
[1645839470392,4.281,93.486,93.381,108.86292427]
[1645839470993,4.281,93.486,93.39,16.0581]
[1645839471202,1.77531164,93.508,93.393,106.0]
[1645839471203,2.59886482,93.507,93.393,106.0]
[1645839471493,1.77531164,93.508,93.393,106.0]
[1645839471692,6.22827969,93.518,93.395,106.0]
[1645839471897,6.22827969,93.518,93.396,2.57005547]
[1645839472099,6.22827969,93.518,93.398,2.89264376]
[1645839472496,6.22827969,93.518,93.401,106.0]
[1645839472996,6.22827969,93.518,93.402,2.86292427]
[1645839473397,1.94827969,93.518,93.402,2.86292427]
[1645839474505,1.91246196,93.508,93.411,106.0]
[1645839474700,1.91246196,93.508,93.413,106.0]
[1645839474901,4.28,93.524,93.413,106.0]
[1645839475101,16.0546,93.53,93.413,106.0]
[1645839475102,1.55868898,93.523,93.413,106.0]
[1645839475302,1.55868898,93.523,93.414,2.86292427]
[1645839475717,1.55868898,93.523,93.421,106.0]
[1645839476118,1.55868898,93.523,93.422,2.86292427]
[1645839476718,1.90278444,93.536,93.422,2.86292427]
[1645839476917,23.9713,93.542,93.422,5.26467167]
[1645839477119,23.9713,93.542,93.431,160.37290757]
[1645839477317,23.9713,93.542,93.432,2.75851944]
[1645839477518,23.9713,93.542,93.432,5.62144371]
[1645839477719,23.9713,93.542,93.433,106.0]
[1645839477918,23.9713,93.542,93.434,2.34512896]
[1645839478219,23.9713,93.542,93.434,5.20805323]
[1645839478419,23.9713,93.542,93.435,2.86292427]
[1645839478821,23.9713,93.542,93.441,106.0]
[1645839479120,1.64411256,93.541,93.441,106.0]
[1645839479519,1.64411256,93.541,93.451,106.0]
[1645839479721,1.64411256,93.541,93.453,106.0]
[1645839480322,23.9713,93.542,93.453,106.0]
[1645839481821,23.9713,93.542,93.461,106.0]
[1645839482022,5.78890071,93.566,93.461,106.0]
[1645839482222,1.51190071,93.566,93.462,2.86292427]
[1645839483226,1.51190071,93.566,93.471,106.0]
[1645839483422,1.51190071,93.566,93.473,106.0]
[1645839484324,24.3091,93.569,93.481,105.5]
[1645839484522,1.59286554,93.586,93.481,105.5]
[1645839484721,1.59286554,93.586,93.482,2.86292427]
[1645839485124,23.9099,93.603,93.483,105.5]
[1645839485424,1.95579578,93.599,93.484,2.86292427]
[1645839485824,1.95579578,93.599,93.491,105.5]
[1645839486025,1.95579578,93.599,93.501,105.5]
[1645839486629,4.55580813,93.599,93.501,105.5]
[1645839487629,4.55580813,93.599,93.511,105.5]
[1645839487830,4.55580813,93.599,93.513,105.5]
[1645839488028,1.95579578,93.599,93.513,105.5]
[1645839488232,1.95579578,93.599,93.512,54.79583037]
[1645839488430,27.09981327,93.598,93.421,5.0]
[1645839488631,5.72801089,93.597,93.442,15.6679]
[1645839488830,55.59112416,93.597,93.442,15.6679]
[1645839489029,33.69091948,93.596,93.442,15.6679]
[1645839489337,8.87908795,93.595,93.454,162.2107746]
[1645839489531,1.59363984,93.594,93.454,162.2107746]
[1645839489731,4.276,93.593,93.454,162.2107746]
[1645839489930,24.17431085,93.593,93.454,162.2107746]
[1645839490133,1.5450943,93.592,93.454,162.2107746]
[1645839490330,75.29404379,93.592,93.454,162.2107746]
[1645839490531,16.0447,93.59,93.461,106.0]
[1645839490732,1.9854847,93.589,93.461,106.0]
[1645839490933,46.38359647,93.589,93.461,106.0]
[1645839491131,21.77107395,93.588,93.461,106.0]
[1645839491337,1.92628912,93.587,93.462,2.72414933]
[1645839491734,1.52802368,93.596,93.462,2.72414933]
[1645839492336,24.49980092,93.595,93.462,2.72414933]
[1645839492534,1.80671766,93.594,93.471,111.0]
[1645839492736,1.80671766,93.594,93.481,106.0]
[1645839493536,1.80671766,93.594,93.48,12.71]
[1645839493537,1.80671766,93.594,93.501,106.0]
[1645839493735,1.73151871,93.639,93.511,106.0]
[1645839495138,1.73151871,93.639,93.523,106.0]
[1645839495340,1.73151871,93.639,93.524,2.21802519]
[1645839495540,1.73151871,93.639,93.531,106.0]